[Event "*** SCC Grand Prix: Titled Tuesday Blitz"]
[Site "Chess.com"]
[Date "2020.07.21"]
[Round "9"]
[White "vovachesss"]
[Black "Jaka_Brilej"]
[Result "0-1"]
[WhiteElo "2563"]
[BlackElo "2367"]
[TimeControl "180+1"]
[EndTime "11:45:37 PDT"]
[Termination "Jaka_Brilej won by resignation"]

1. e4 {[%clk 0:02:57.6]} 1... c5 {[%clk 0:02:58]} 2. d4 {[%clk 0:02:57.6]} 2...
cxd4 {[%clk 0:02:57.5]} 3. c3 {[%clk 0:02:57.5]} 3... dxc3 {[%clk 0:02:57.9]} 4.
Nxc3 {[%clk 0:02:58.4]} 4... Nc6 {[%clk 0:02:58.4]} 5. Nf3 {[%clk 0:02:59.3]}
5... e6 {[%clk 0:02:57.8]} 6. Bc4 {[%clk 0:02:57.2]} 6... Qc7 {[%clk 0:02:55.3]}
7. O-O {[%clk 0:02:57]} 7... Nf6 {[%clk 0:02:52.3]} 8. Qe2 {[%clk 0:02:57]} 8...
Ng4 {[%clk 0:02:51.1]} 9. Rd1 {[%clk 0:02:56.1]} 9... a6 {[%clk 0:02:48.2]} 10.
Bb3 {[%clk 0:02:49.4]} 10... Bc5 {[%clk 0:02:43.8]} 11. Nd5 {[%clk 0:02:44.6]}
11... exd5 {[%clk 0:02:13.8]} 12. exd5+ {[%clk 0:02:43.4]} 12... Ne7 {[%clk
0:02:13.4]} 13. h3 {[%clk 0:02:37]} 13... Nxf2 {[%clk 0:02:07.4]} 14. d6 {[%clk
0:02:35.5]} 14... Nxd1+ {[%clk 0:02:06]} 15. Kh1 {[%clk 0:02:30.2]} 15... Qxd6
{[%clk 0:02:01]} 16. Bxd1 {[%clk 0:02:25.9]} 16... O-O {[%clk 0:01:58.2]} 17.
Bc2 {[%clk 0:02:25.9]} 17... Ng6 {[%clk 0:01:57.6]} 18. Ng5 {[%clk 0:02:25.5]}
18... Qe5 {[%clk 0:01:24.3]} 19. Qf1 {[%clk 0:02:08.9]} 19... h6 {[%clk
0:01:19.6]} 20. Nf3 {[%clk 0:02:05.6]} 20... Qf6 {[%clk 0:01:18.9]} 21. Bd2
{[%clk 0:02:03.1]} 21... d5 {[%clk 0:01:18.1]} 22. b4 {[%clk 0:02:02.2]} 22...
Ba7 {[%clk 0:01:15.6]} 23. Rd1 {[%clk 0:02:00.7]} 23... d4 {[%clk 0:01:11.6]}
0-1

[Event "*** SCC Grand Prix: Titled Tuesday Blitz"]
[Site "Chess.com"]
[Date "2020.07.21"]
[Round "9"]
[White "harkerchess"]
[Black "czasnaszachy"]
[Result "1-0"]
[WhiteElo "2112"]
[BlackElo "2219"]
[TimeControl "180+1"]
[EndTime "11:45:45 PDT"]
[Termination "harkerchess won by checkmate"]

1. d4 {[%clk 0:03:00.9]} 1... d5 {[%clk 0:02:56.1]} 2. c4 {[%clk 0:03:00.9]}
2... c6 {[%clk 0:02:45.8]} 3. cxd5 {[%clk 0:03:00.9]} 3... cxd5 {[%clk
0:02:45.4]} 4. Nc3 {[%clk 0:03:01.4]} 4... Nf6 {[%clk 0:02:41.8]} 5. Nf3 {[%clk
0:03:00.9]} 5... Nc6 {[%clk 0:02:39.6]} 6. Bf4 {[%clk 0:02:59.9]} 6... a6 {[%clk
0:02:30]} 7. e3 {[%clk 0:02:57.9]} 7... Bf5 {[%clk 0:02:28]} 8. Bd3 {[%clk
0:02:54.4]} 8... Bxd3 {[%clk 0:02:26.5]} 9. Qxd3 {[%clk 0:02:55.3]} 9... e6
{[%clk 0:02:26.6]} 10. O-O {[%clk 0:02:43.3]} 10... Bd6 {[%clk 0:02:21.6]} 11.
Bg3 {[%clk 0:02:42.5]} 11... Bxg3 {[%clk 0:02:20.6]} 12. hxg3 {[%clk 0:02:43.4]}
12... O-O {[%clk 0:02:19.2]} 13. Rac1 {[%clk 0:02:41.9]} 13... Rc8 {[%clk
0:02:10.3]} 14. Na4 {[%clk 0:02:41.1]} 14... Qa5 {[%clk 0:01:53.8]} 15. Qb3
{[%clk 0:02:36.3]} 15... Qb4 {[%clk 0:01:31.9]} 16. Qd1 {[%clk 0:02:13]} 16...
Nd7 {[%clk 0:01:22.9]} 17. a3 {[%clk 0:02:09.1]} 17... Qd6 {[%clk 0:01:20.4]}
18. b4 {[%clk 0:02:04.8]} 18... b6 {[%clk 0:01:01.1]} 19. Qd3 {[%clk 0:01:55.2]}
19... b5 {[%clk 0:00:54.1]} 20. Nc5 {[%clk 0:01:54.1]} 20... Ra8 {[%clk
0:00:48.3]} 21. Ng5 {[%clk 0:01:44.3]} 21... Nb6 {[%clk 0:00:46.5]} 22. Qxh7#
{[%clk 0:01:40.4]} 1-0

[Event "*** SCC Grand Prix: Titled Tuesday Blitz"]
[Site "Chess.com"]
[Date "2020.07.21"]
[Round "9"]
[White "bazar-wokzal"]
[Black "chessfrendz"]
[Result "1-0"]
[WhiteElo "2423"]
[BlackElo "2249"]
[TimeControl "180+1"]
[EndTime "11:45:46 PDT"]
[Termination "bazar-wokzal won by resignation"]

1. e4 {[%clk 0:02:51.1]} 1... e5 {[%clk 0:02:58.2]} 2. Bc4 {[%clk 0:02:50.3]}
2... Nf6 {[%clk 0:02:51.9]} 3. d3 {[%clk 0:02:50.6]} 3... c6 {[%clk 0:02:50.5]}
4. Nf3 {[%clk 0:02:50.3]} 4... Be7 {[%clk 0:02:44.4]} 5. O-O {[%clk 0:02:49.6]}
5... d6 {[%clk 0:02:43.5]} 6. Nc3 {[%clk 0:02:49.2]} 6... O-O {[%clk 0:02:42.2]}
7. a4 {[%clk 0:02:48.7]} 7... Be6 {[%clk 0:02:41.1]} 8. Bg5 {[%clk 0:02:45.1]}
8... Nbd7 {[%clk 0:02:37.3]} 9. Qe2 {[%clk 0:02:42.8]} 9... Bxc4 {[%clk
0:02:31]} 10. dxc4 {[%clk 0:02:42.5]} 10... Nc5 {[%clk 0:02:29.8]} 11. Rfd1
{[%clk 0:02:37.1]} 11... Qc7 {[%clk 0:02:30.2]} 12. a5 {[%clk 0:02:31.7]} 12...
Rfe8 {[%clk 0:02:26.4]} 13. Ra3 {[%clk 0:02:07.6]} 13... Rad8 {[%clk 0:02:22.8]}
14. b4 {[%clk 0:02:07]} 14... Ne6 {[%clk 0:02:21.7]} 15. Bxf6 {[%clk 0:01:55]}
15... Bxf6 {[%clk 0:02:21.1]} 16. b5 {[%clk 0:01:55.5]} 16... Nd4 {[%clk
0:02:18.1]} 17. Qd3 {[%clk 0:01:50.8]} 17... g6 {[%clk 0:01:41.2]} 18. a6 {[%clk
0:01:48]} 18... cxb5 {[%clk 0:01:38.5]} 19. Nd5 {[%clk 0:01:37.6]} 19... Qxc4
{[%clk 0:01:29.6]} 20. Nxf6+ {[%clk 0:01:33.9]} 20... Kh8 {[%clk 0:01:27]} 21.
Nxe8 {[%clk 0:01:20.2]} 1-0

[Event "*** SCC Grand Prix: Titled Tuesday Blitz"]
[Site "Chess.com"]
[Date "2020.07.21"]
[Round "9"]
[White "ikhasu"]
[Black "TudorAnton"]
[Result "1-0"]
[WhiteElo "2400"]
[BlackElo "2493"]
[TimeControl "180+1"]
[EndTime "11:45:49 PDT"]
[Termination "ikhasu won by resignation"]

1. e4 {[%clk 0:03:00.6]} 1... e5 {[%clk 0:02:58.9]} 2. Nf3 {[%clk 0:03:00.3]}
2... Nc6 {[%clk 0:02:56.9]} 3. Bb5 {[%clk 0:03:00]} 3... a6 {[%clk 0:02:55.8]}
4. Ba4 {[%clk 0:02:59.9]} 4... Nf6 {[%clk 0:02:47.7]} 5. d3 {[%clk 0:02:59.4]}
5... b5 {[%clk 0:02:46.8]} 6. Bb3 {[%clk 0:02:59.3]} 6... Bc5 {[%clk 0:02:47.2]}
7. O-O {[%clk 0:02:57.6]} 7... d6 {[%clk 0:02:47.1]} 8. h3 {[%clk 0:02:57.2]}
8... O-O {[%clk 0:02:46.3]} 9. Nc3 {[%clk 0:02:57.2]} 9... Nd4 {[%clk
0:02:44.3]} 10. Nxd4 {[%clk 0:02:56.3]} 10... Bxd4 {[%clk 0:02:45.2]} 11. Ne2
{[%clk 0:02:55.5]} 11... Bb6 {[%clk 0:02:44.7]} 12. Be3 {[%clk 0:02:52.5]} 12...
c6 {[%clk 0:02:44.1]} 13. a4 {[%clk 0:02:51.9]} 13... Be6 {[%clk 0:02:40.3]} 14.
Bxe6 {[%clk 0:02:43.6]} 14... fxe6 {[%clk 0:02:41.2]} 15. axb5 {[%clk
0:02:42.5]} 15... Bxe3 {[%clk 0:02:37.3]} 16. fxe3 {[%clk 0:02:42.3]} 16... axb5
{[%clk 0:02:35.7]} 17. Rxa8 {[%clk 0:02:32.4]} 17... Qxa8 {[%clk 0:02:36.6]} 18.
Qa1 {[%clk 0:02:32.8]} 18... Qb7 {[%clk 0:02:29.3]} 19. Qa2 {[%clk 0:02:31.4]}
19... d5 {[%clk 0:02:26.7]} 20. exd5 {[%clk 0:02:29.5]} 20... exd5 {[%clk
0:02:26.5]} 21. Ra1 {[%clk 0:02:25.9]} 21... e4 {[%clk 0:02:26.8]} 22. d4 {[%clk
0:02:22.9]} 22... Qf7 {[%clk 0:02:18.8]} 23. Qa7 {[%clk 0:02:11.8]} 23... Nd7
{[%clk 0:02:14.2]} 24. Kh1 {[%clk 0:02:11]} 24... h6 {[%clk 0:02:08.8]} 25. Nf4
{[%clk 0:02:07.7]} 25... Nf6 {[%clk 0:02:08.1]} 26. Qxf7+ {[%clk 0:01:56.3]}
26... Rxf7 {[%clk 0:02:09]} 27. Ra6 {[%clk 0:01:52]} 27... g5 {[%clk 0:02:05.4]}
28. Ne6 {[%clk 0:01:47.5]} 28... Nh5 {[%clk 0:01:56.6]} 29. Rxc6 {[%clk
0:01:35.1]} 29... Ng3+ {[%clk 0:01:52.7]} 30. Kg1 {[%clk 0:01:34.1]} 30... h5
{[%clk 0:01:35.7]} 31. Rc8+ {[%clk 0:01:28.3]} 1-0

[Event "*** SCC Grand Prix: Titled Tuesday Blitz"]
[Site "Chess.com"]
[Date "2020.07.21"]
[Round "9"]
[White "Savva09022009"]
[Black "tan275"]
[Result "1-0"]
[WhiteElo "2427"]
[BlackElo "2251"]
[TimeControl "180+1"]
[EndTime "11:45:56 PDT"]
[Termination "Savva09022009 won by resignation"]

1. d4 {[%clk 0:03:00.9]} 1... d5 {[%clk 0:02:58.6]} 2. Nc3 {[%clk 0:02:56.5]}
2... Nf6 {[%clk 0:02:55.3]} 3. Bf4 {[%clk 0:02:55.8]} 3... c6 {[%clk 0:02:54.3]}
4. e3 {[%clk 0:02:50]} 4... g6 {[%clk 0:02:52.8]} 5. Nf3 {[%clk 0:02:48.9]} 5...
Bg7 {[%clk 0:02:52.9]} 6. Bd3 {[%clk 0:02:48.2]} 6... O-O {[%clk 0:02:52.1]} 7.
O-O {[%clk 0:02:48.7]} 7... Bg4 {[%clk 0:02:43.2]} 8. h3 {[%clk 0:02:38.8]} 8...
Bxf3 {[%clk 0:02:42.8]} 9. Qxf3 {[%clk 0:02:38.5]} 9... Nfd7 {[%clk 0:02:38.5]}
10. Rad1 {[%clk 0:02:31.7]} 10... Qb6 {[%clk 0:02:32.2]} 11. Rb1 {[%clk
0:02:27.7]} 11... e5 {[%clk 0:02:28.5]} 12. dxe5 {[%clk 0:02:27.5]} 12... Nxe5
{[%clk 0:02:29]} 13. Qe2 {[%clk 0:02:27.8]} 13... Nbd7 {[%clk 0:02:28.3]} 14.
Qd2 {[%clk 0:02:22.9]} 14... Nxd3 {[%clk 0:02:25]} 15. cxd3 {[%clk 0:02:22.5]}
15... d4 {[%clk 0:02:16.3]} 16. Ne4 {[%clk 0:02:19.5]} 16... dxe3 {[%clk
0:02:08.8]} 17. Bxe3 {[%clk 0:02:18.4]} 17... Qb5 {[%clk 0:01:56.6]} 18. Bh6
{[%clk 0:02:15.6]} 18... Bxh6 {[%clk 0:01:44.2]} 19. Qxh6 {[%clk 0:02:15.3]}
19... Qxd3 {[%clk 0:01:41.1]} 20. Rfe1 {[%clk 0:02:11.8]} 20... f5 {[%clk
0:01:17.2]} 21. Ng5 {[%clk 0:02:05.6]} 21... Nf6 {[%clk 0:01:09.6]} 22. Rbd1
{[%clk 0:01:58.4]} 22... Qc2 {[%clk 0:00:42.1]} 23. Rd7 {[%clk 0:01:52.3]} 1-0

[Event "*** SCC Grand Prix: Titled Tuesday Blitz"]
[Site "Chess.com"]
[Date "2020.07.21"]
[Round "9"]
[White "sergiochess83"]
[Black "ulises2013"]
[Result "1/2-1/2"]
[WhiteElo "2832"]
[BlackElo "2645"]
[TimeControl "180+1"]
[EndTime "11:46:11 PDT"]
[Termination "Game drawn by repetition"]

1. e4 {[%clk 0:03:00.9]} 1... g6 {[%clk 0:03:00]} 2. d4 {[%clk 0:03:00.1]} 2...
Bg7 {[%clk 0:03:00.3]} 3. Nf3 {[%clk 0:02:59.4]} 3... c5 {[%clk 0:03:00.6]} 4.
d5 {[%clk 0:02:58.5]} 4... d6 {[%clk 0:03:00.7]} 5. Bb5+ {[%clk 0:02:58]} 5...
Bd7 {[%clk 0:03:00.1]} 6. a4 {[%clk 0:02:58.9]} 6... Nf6 {[%clk 0:02:59.8]} 7.
Nc3 {[%clk 0:02:58.1]} 7... O-O {[%clk 0:03:00]} 8. O-O {[%clk 0:02:57.7]} 8...
e6 {[%clk 0:03:00.5]} 9. Re1 {[%clk 0:02:01.6]} 9... exd5 {[%clk 0:02:57.9]} 10.
exd5 {[%clk 0:01:54.9]} 10... Na6 {[%clk 0:02:57]} 11. Bf4 {[%clk 0:01:52.3]}
11... Bf5 {[%clk 0:02:53.1]} 12. Nd2 {[%clk 0:01:50.8]} 12... Nb4 {[%clk
0:02:51.6]} 13. Rc1 {[%clk 0:01:46]} 13... Nh5 {[%clk 0:02:44.1]} 14. Be3 {[%clk
0:01:40.7]} 14... Nf6 {[%clk 0:02:33.9]} 15. Nf1 {[%clk 0:01:17.4]} 15... a6
{[%clk 0:02:19.7]} 16. Be2 {[%clk 0:01:15.3]} 16... Re8 {[%clk 0:02:09.4]} 17.
Ng3 {[%clk 0:01:12.2]} 17... Bd7 {[%clk 0:02:08.8]} 18. Qd2 {[%clk 0:01:10.9]}
18... Qc7 {[%clk 0:01:56.1]} 19. h3 {[%clk 0:01:09.6]} 19... Re7 {[%clk
0:01:47.3]} 20. Kf1 {[%clk 0:00:53.8]} 20... Rae8 {[%clk 0:01:47]} 21. Bg5
{[%clk 0:00:51.4]} 21... Re5 {[%clk 0:01:39.2]} 22. Bf4 {[%clk 0:00:48.2]} 22...
R5e7 {[%clk 0:01:39.3]} 23. Bg5 {[%clk 0:00:37.4]} 23... Re5 {[%clk 0:01:39.1]}
24. Bf4 {[%clk 0:00:37.4]} 24... R5e7 {[%clk 0:01:39.3]} 25. Bg5 {[%clk
0:00:37.4]} 1/2-1/2

[Event "*** SCC Grand Prix: Titled Tuesday Blitz"]
[Site "Chess.com"]
[Date "2020.07.21"]
[Round "9"]
[White "JesseKraai"]
[Black "seorobert1971"]
[Result "0-1"]
[WhiteElo "2523"]
[BlackElo "2689"]
[TimeControl "180+1"]
[EndTime "11:46:29 PDT"]
[Termination "seorobert1971 won by resignation"]

1. Nf3 {[%clk 0:03:00.9]} 1... Nf6 {[%clk 0:02:59.8]} 2. c4 {[%clk 0:03:00.8]}
2... e6 {[%clk 0:02:59.4]} 3. g3 {[%clk 0:03:00.3]} 3... b6 {[%clk 0:02:59]} 4.
Bg2 {[%clk 0:03:00.4]} 4... Bb7 {[%clk 0:02:59.5]} 5. O-O {[%clk 0:03:00.9]}
5... c5 {[%clk 0:02:59.8]} 6. Nc3 {[%clk 0:03:00.2]} 6... Be7 {[%clk 0:02:57.3]}
7. d4 {[%clk 0:02:59.8]} 7... cxd4 {[%clk 0:02:57.4]} 8. Qxd4 {[%clk 0:02:59.9]}
8... O-O {[%clk 0:02:57.3]} 9. Bg5 {[%clk 0:02:55.1]} 9... h6 {[%clk 0:02:54.4]}
10. Bxf6 {[%clk 0:02:54.7]} 10... Bxf6 {[%clk 0:02:54.1]} 11. Qf4 {[%clk
0:02:52.9]} 11... Bxc3 {[%clk 0:02:52]} 12. bxc3 {[%clk 0:02:52.5]} 12... Na6
{[%clk 0:02:51.1]} 13. Rfd1 {[%clk 0:02:49.7]} 13... Nc5 {[%clk 0:02:36.8]} 14.
a4 {[%clk 0:02:43.5]} 14... Rc8 {[%clk 0:02:34.5]} 15. Nd4 {[%clk 0:02:34.7]}
15... Bxg2 {[%clk 0:02:33.7]} 16. Kxg2 {[%clk 0:02:35]} 16... Qc7 {[%clk
0:02:21.1]} 17. Qxc7 {[%clk 0:02:29.6]} 17... Rxc7 {[%clk 0:02:20.8]} 18. a5
{[%clk 0:02:28.9]} 18... bxa5 {[%clk 0:02:17.8]} 19. Rxa5 {[%clk 0:02:16.1]}
19... a6 {[%clk 0:02:16.9]} 20. f3 {[%clk 0:02:09]} 20... Rfc8 {[%clk
0:02:16.3]} 21. Rb1 {[%clk 0:02:01.6]} 21... Kf8 {[%clk 0:02:15.5]} 22. Kf2
{[%clk 0:02:00.4]} 22... Ke7 {[%clk 0:02:15.3]} 23. Ke3 {[%clk 0:01:58.3]} 23...
Ra8 {[%clk 0:02:06.1]} 24. Rb4 {[%clk 0:01:45.4]} 24... Nb7 {[%clk 0:02:02.7]}
25. Raa4 {[%clk 0:01:40]} 25... a5 {[%clk 0:02:01.4]} 26. Rb1 {[%clk 0:01:34.5]}
26... Nd6 {[%clk 0:01:45.9]} 27. Kd3 {[%clk 0:01:29.7]} 27... Rac8 {[%clk
0:01:42.7]} 28. Rxa5 {[%clk 0:01:02.5]} 28... Nxc4 {[%clk 0:01:42.4]} 29. Ra4
{[%clk 0:00:53.8]} 29... Ne5+ {[%clk 0:01:40.1]} 30. Ke4 {[%clk 0:00:53.8]}
30... f6 {[%clk 0:01:39.3]} 31. Nb5 {[%clk 0:00:51.8]} 31... Rc5 {[%clk
0:01:36.6]} 32. f4 {[%clk 0:00:46.6]} 32... Nf7 {[%clk 0:01:36.2]} 33. Rb3
{[%clk 0:00:39.9]} 33... Rxb5 {[%clk 0:01:34.8]} 0-1

[Event "*** SCC Grand Prix: Titled Tuesday Blitz"]
[Site "Chess.com"]
[Date "2020.07.21"]
[Round "9"]
[White "warmoatmeal"]
[Black "Nf3c5"]
[Result "0-1"]
[WhiteElo "2350"]
[BlackElo "2551"]
[TimeControl "180+1"]
[EndTime "11:46:43 PDT"]
[Termination "Nf3c5 won by checkmate"]

1. Nf3 {[%clk 0:03:00.9]} 1... c5 {[%clk 0:02:46.9]} 2. c4 {[%clk 0:02:59.3]}
2... g6 {[%clk 0:02:46.3]} 3. Nc3 {[%clk 0:02:59.1]} 3... Bg7 {[%clk 0:02:43.8]}
4. d4 {[%clk 0:02:59.2]} 4... cxd4 {[%clk 0:02:43.3]} 5. Nxd4 {[%clk 0:03:00.1]}
5... Nc6 {[%clk 0:02:43.9]} 6. Nc2 {[%clk 0:02:59.4]} 6... Nf6 {[%clk
0:02:43.2]} 7. e4 {[%clk 0:02:59.1]} 7... d6 {[%clk 0:02:43.3]} 8. f3 {[%clk
0:02:58.1]} 8... Nd7 {[%clk 0:02:42.8]} 9. Be3 {[%clk 0:02:57.7]} 9... Bxc3+
{[%clk 0:02:32.5]} 10. bxc3 {[%clk 0:02:57.1]} 10... Qa5 {[%clk 0:02:33.4]} 11.
Qd2 {[%clk 0:02:54.4]} 11... O-O {[%clk 0:02:33]} 12. Be2 {[%clk 0:02:54]} 12...
Nde5 {[%clk 0:02:24]} 13. h4 {[%clk 0:02:49.3]} 13... Be6 {[%clk 0:02:17.5]} 14.
h5 {[%clk 0:02:48.8]} 14... Bxc4 {[%clk 0:02:13.3]} 15. hxg6 {[%clk 0:02:47.4]}
15... fxg6 {[%clk 0:02:11.5]} 16. Bd4 {[%clk 0:02:24.1]} 16... Bxe2 {[%clk
0:02:06.1]} 17. Kxe2 {[%clk 0:02:25]} 17... Rac8 {[%clk 0:01:55.4]} 18. Rxh7
{[%clk 0:02:24.3]} 18... Kxh7 {[%clk 0:01:21.4]} 19. Rh1+ {[%clk 0:02:10.5]}
19... Kg8 {[%clk 0:01:20.8]} 20. Qg5 {[%clk 0:01:44.7]} 20... Qb5+ {[%clk
0:01:03.9]} 21. Kd1 {[%clk 0:01:09.3]} 21... Qb1+ {[%clk 0:00:59.5]} 22. Qc1
{[%clk 0:01:03.4]} 22... Qxc1+ {[%clk 0:00:57.2]} 23. Kxc1 {[%clk 0:01:04.3]}
23... Nxd4 {[%clk 0:00:54.2]} 24. Nxd4 {[%clk 0:01:03.7]} 24... Rxc3+ {[%clk
0:00:52.8]} 25. Kb2 {[%clk 0:01:04.3]} 25... Rfc8 {[%clk 0:00:52.9]} 26. Ne6
{[%clk 0:01:03.5]} 26... Nd3+ {[%clk 0:00:47.7]} 27. Kb1 {[%clk 0:01:00.4]}
27... Rc1+ {[%clk 0:00:48.3]} 28. Rxc1 {[%clk 0:01:00.4]} 28... Rxc1# {[%clk
0:00:49.2]} 0-1

[Event "*** SCC Grand Prix: Titled Tuesday Blitz"]
[Site "Chess.com"]
[Date "2020.07.21"]
[Round "9"]
[White "praveenb2002"]
[Black "WeAintSurePal"]
[Result "1-0"]
[WhiteElo "2753"]
[BlackElo "2323"]
[TimeControl "180+1"]
[EndTime "11:46:46 PDT"]
[Termination "praveenb2002 won by resignation"]

1. e4 {[%clk 0:02:59.6]} 1... c6 {[%clk 0:02:59.7]} 2. d4 {[%clk 0:02:59.1]}
2... d5 {[%clk 0:03:00.6]} 3. exd5 {[%clk 0:02:57.6]} 3... cxd5 {[%clk
0:03:01.5]} 4. c4 {[%clk 0:02:57.8]} 4... Nf6 {[%clk 0:03:01.8]} 5. Nc3 {[%clk
0:02:57.7]} 5... Nc6 {[%clk 0:02:53.5]} 6. Bg5 {[%clk 0:02:52.7]} 6... Ne4
{[%clk 0:02:52.2]} 7. Nxe4 {[%clk 0:02:51.9]} 7... dxe4 {[%clk 0:02:53.1]} 8. d5
{[%clk 0:02:51.7]} 8... Ne5 {[%clk 0:02:52.7]} 9. Qd4 {[%clk 0:02:48.3]} 9... f6
{[%clk 0:02:52.6]} 10. Qxe4 {[%clk 0:02:46.5]} 10... e6 {[%clk 0:02:47.6]} 11.
O-O-O {[%clk 0:02:29.8]} 11... Qb6 {[%clk 0:02:41]} 12. Nh3 {[%clk 0:02:23.2]}
12... Bc5 {[%clk 0:02:33.7]} 13. Be3 {[%clk 0:02:21.2]} 13... O-O {[%clk
0:02:29.1]} 14. Bxc5 {[%clk 0:02:16]} 14... Qxc5 {[%clk 0:02:28.4]} 15. Nf4
{[%clk 0:02:16.6]} 15... exd5 {[%clk 0:02:25.3]} 16. Qxd5+ {[%clk 0:02:11.7]}
16... Qxd5 {[%clk 0:02:23.3]} 17. Nxd5 {[%clk 0:02:12.6]} 17... Bg4 {[%clk
0:02:00.5]} 18. f3 {[%clk 0:02:11.9]} 18... Bh5 {[%clk 0:01:58.7]} 19. b3 {[%clk
0:02:05.2]} 19... Rac8 {[%clk 0:01:56.9]} 20. Kb2 {[%clk 0:02:05]} 20... Kh8
{[%clk 0:01:50.6]} 21. Be2 {[%clk 0:02:01.2]} 21... Bf7 {[%clk 0:01:40.4]} 22.
f4 {[%clk 0:01:59.1]} 22... Ng6 {[%clk 0:01:37.1]} 23. g3 {[%clk 0:01:56.7]}
23... Rfe8 {[%clk 0:01:24.1]} 24. Bg4 {[%clk 0:01:56.1]} 24... Rcd8 {[%clk
0:01:15.7]} 25. Nc7 {[%clk 0:01:53.3]} 25... Rf8 {[%clk 0:01:06.3]} 26. Rxd8
{[%clk 0:01:49.6]} 26... Rxd8 {[%clk 0:01:07.2]} 27. Rd1 {[%clk 0:01:47.6]}
27... Rb8 {[%clk 0:01:05.9]} 28. Rd7 {[%clk 0:01:43.5]} 28... Kg8 {[%clk
0:01:03.6]} 29. Be6 {[%clk 0:01:43]} 29... Bxe6 {[%clk 0:01:02.5]} 30. Nxe6
{[%clk 0:01:43.9]} 30... Re8 {[%clk 0:00:58.1]} 31. f5 {[%clk 0:01:29.3]} 31...
Nf8 {[%clk 0:00:57.3]} 32. Rxg7+ {[%clk 0:01:29.2]} 32... Kh8 {[%clk 0:00:57.4]}
33. Rxb7 {[%clk 0:01:29.5]} 33... Nxe6 {[%clk 0:00:57.4]} 34. fxe6 {[%clk
0:01:29.9]} 34... Rxe6 {[%clk 0:00:58.3]} 35. Rxa7 {[%clk 0:01:30]} 35... Re2+
{[%clk 0:00:58.8]} 36. Kc3 {[%clk 0:01:29.9]} 36... Rxh2 {[%clk 0:00:59.7]} 37.
c5 {[%clk 0:01:30.4]} 37... Rg2 {[%clk 0:00:58.9]} 38. c6 {[%clk 0:01:30]} 38...
Rxg3+ {[%clk 0:00:59.3]} 39. Kc4 {[%clk 0:01:30.3]} 39... f5 {[%clk 0:00:52.8]}
40. Ra8+ {[%clk 0:01:29.6]} 40... Rg8 {[%clk 0:00:53.3]} 41. Rxg8+ {[%clk
0:01:28.7]} 41... Kxg8 {[%clk 0:00:51.6]} 42. c7 {[%clk 0:01:29.6]} 1-0

[Event "*** SCC Grand Prix: Titled Tuesday Blitz"]
[Site "Chess.com"]
[Date "2020.07.21"]
[Round "9"]
[White "BabyBoss31"]
[Black "Lion-Al-Messi"]
[Result "0-1"]
[WhiteElo "2214"]
[BlackElo "2433"]
[TimeControl "180+1"]
[EndTime "11:46:49 PDT"]
[Termination "Lion-Al-Messi won by resignation"]

1. d4 {[%clk 0:02:57.5]} 1... b6 {[%clk 0:02:59.7]} 2. Bf4 {[%clk 0:02:47.3]}
2... Bb7 {[%clk 0:02:59.5]} 3. e3 {[%clk 0:02:44]} 3... Nf6 {[%clk 0:02:59.4]}
4. Nf3 {[%clk 0:02:42]} 4... e6 {[%clk 0:02:59.6]} 5. Nbd2 {[%clk 0:02:39.4]}
5... Be7 {[%clk 0:02:59.2]} 6. h3 {[%clk 0:02:38.7]} 6... O-O {[%clk 0:02:59.3]}
7. Bd3 {[%clk 0:02:35.6]} 7... c5 {[%clk 0:02:59.4]} 8. c3 {[%clk 0:02:35]} 8...
d6 {[%clk 0:02:57.4]} 9. O-O {[%clk 0:02:34.9]} 9... Nbd7 {[%clk 0:02:57.4]} 10.
Qe2 {[%clk 0:02:33.6]} 10... Qc7 {[%clk 0:02:55.3]} 11. e4 {[%clk 0:02:34]}
11... e5 {[%clk 0:02:54.7]} 12. Bh2 {[%clk 0:02:28.4]} 12... Rad8 {[%clk
0:02:49.3]} 13. d5 {[%clk 0:02:19.9]} 13... Rfe8 {[%clk 0:02:46]} 14. b4 {[%clk
0:02:13.7]} 14... Bf8 {[%clk 0:02:44.7]} 15. a4 {[%clk 0:02:13.1]} 15... g6
{[%clk 0:02:40.4]} 16. Rfb1 {[%clk 0:02:12.2]} 16... Bg7 {[%clk 0:02:39.7]} 17.
a5 {[%clk 0:02:12.5]} 17... Nh5 {[%clk 0:02:36.4]} 18. axb6 {[%clk 0:02:05.6]}
18... axb6 {[%clk 0:02:36]} 19. bxc5 {[%clk 0:02:05.8]} 19... Nxc5 {[%clk
0:02:36.9]} 20. Nc4 {[%clk 0:01:44.9]} 20... Nf4 {[%clk 0:02:33.1]} 21. Bxf4
{[%clk 0:01:42.1]} 21... exf4 {[%clk 0:02:34]} 22. Rxb6 {[%clk 0:01:30.3]} 22...
Bxd5 {[%clk 0:02:31.3]} 23. exd5 {[%clk 0:00:54]} 23... Rxe2 {[%clk 0:02:29.8]}
24. Bxe2 {[%clk 0:00:54.9]} 24... Ne4 {[%clk 0:02:27.5]} 25. Raa6 {[%clk
0:00:49.6]} 25... Nxc3 {[%clk 0:02:20.8]} 26. Bf1 {[%clk 0:00:48.2]} 26... Ne4
{[%clk 0:02:07.5]} 27. Rc6 {[%clk 0:00:42.1]} 27... Qe7 {[%clk 0:02:07.1]} 28.
Rab6 {[%clk 0:00:24]} 28... h6 {[%clk 0:02:06.9]} 29. Na5 {[%clk 0:00:22.8]}
29... Ra8 {[%clk 0:02:03.3]} 30. Nb7 {[%clk 0:00:22.3]} 30... Ra1 {[%clk
0:02:00.6]} 31. Nxd6 {[%clk 0:00:19.3]} 31... Nxd6 {[%clk 0:01:53.4]} 32. Rxd6
{[%clk 0:00:20.2]} 32... Qe2 {[%clk 0:01:53.2]} 33. Nd2 {[%clk 0:00:04.9]} 33...
Qxd2 {[%clk 0:01:51.5]} 34. Rd8+ {[%clk 0:00:05.8]} 34... Kh7 {[%clk 0:01:51.2]}
35. Rbb8 {[%clk 0:00:06]} 35... Rxf1+ {[%clk 0:01:51.3]} 0-1

[Event "*** SCC Grand Prix: Titled Tuesday Blitz"]
[Site "Chess.com"]
[Date "2020.07.21"]
[Round "9"]
[White "AniJak"]
[Black "rugbyclub"]
[Result "1-0"]
[WhiteElo "2306"]
[BlackElo "2133"]
[TimeControl "180+1"]
[EndTime "11:46:52 PDT"]
[Termination "AniJak won by resignation"]

1. e4 {[%clk 0:03:00.9]} 1... c5 {[%clk 0:02:54.9]} 2. Nc3 {[%clk 0:03:01]} 2...
Nc6 {[%clk 0:02:54]} 3. g3 {[%clk 0:03:01.4]} 3... g6 {[%clk 0:02:53.2]} 4. Bg2
{[%clk 0:03:01.2]} 4... Bg7 {[%clk 0:02:53.9]} 5. d3 {[%clk 0:03:01.4]} 5... d6
{[%clk 0:02:54.3]} 6. Nh3 {[%clk 0:03:00.6]} 6... e5 {[%clk 0:02:52.5]} 7. O-O
{[%clk 0:03:00.5]} 7... Nge7 {[%clk 0:02:53]} 8. f4 {[%clk 0:03:00.7]} 8... f5
{[%clk 0:02:48.2]} 9. fxe5 {[%clk 0:02:52.8]} 9... dxe5 {[%clk 0:02:43.7]} 10.
exf5 {[%clk 0:02:47]} 10... Nxf5 {[%clk 0:02:42.9]} 11. g4 {[%clk 0:02:23.3]}
11... Nfd4 {[%clk 0:02:35.5]} 12. Bg5 {[%clk 0:02:16.1]} 12... Qa5 {[%clk
0:01:56.9]} 13. Ne4 {[%clk 0:02:05]} 13... Ne6 {[%clk 0:01:37.8]} 14. Nd6+
{[%clk 0:02:04.5]} 14... Kd7 {[%clk 0:01:37.5]} 15. Nc4 {[%clk 0:02:04.2]} 15...
Qa6 {[%clk 0:01:18]} 16. Bd5 {[%clk 0:01:41.8]} 16... Rf8 {[%clk 0:00:39.1]} 17.
Rxf8 {[%clk 0:01:34.4]} 17... Bxf8 {[%clk 0:00:36]} 18. Qf3 {[%clk 0:01:33.6]}
18... Nxg5 {[%clk 0:00:21.4]} 19. Nxg5 {[%clk 0:01:31]} 19... Be7 {[%clk
0:00:18.9]} 20. Ne6 {[%clk 0:01:24.2]} 20... b5 {[%clk 0:00:17.4]} 21. Bxc6+
{[%clk 0:01:21.3]} 21... Kxe6 {[%clk 0:00:17.5]} 22. Qd5+ {[%clk 0:01:17.6]}
22... Kf6 {[%clk 0:00:16.7]} 23. Qxe5+ {[%clk 0:01:17.6]} 23... Kf7 {[%clk
0:00:12.6]} 24. Rf1+ {[%clk 0:01:16.8]} 1-0